Workbook

Sheet Start
B3: Abgrenzungsrechnung
B6: 1. | C6: Aufwendungen und Erträge
C7: der Finanzbuchhaltung (GuV-Konto)
B9: 2. | C9: Unternehmensbezogener Abgrenzungen
C10: für nicht betrieblich genutztes Vermögen
B12: 3. | C12: Kalkulatorische Kosten
B15: Geben Sie die Aufwendungen und Erträge der Finanzbuchhaltung ein (Schritt 1.)
B16: Nehmen Sie erforderliche Unternehmensbezogene Abgrenzungen vor (Schritt 2.)
B17: Bestimmen Sie die kalkulatorischen Kosten (Schritt 3.)
B18: Das Betriebsergebnis wird unter Berücksichtigung von neutralen Aufwendungen und
B19: Erträgen und kostenrechnerischer Korrekturen ermittelt.
B21: 4. | C21: Anzeige der Ergebnistabelle
B24: 5. | C24: Darstellung der Kostenaufteilung
C25: im Kreisdiagramm

Sheet ErgTab
B4: Ergebnistabelle
C6: Finanzbuchhaltung (Rechnungskreis I) | E6: Kosten- und Leistungsrechnung (Rechnungskreis II)
C7: Gesamtergebnis der Finanzbuchhalung
E8: Abgrenzungenrechnung (Neutrales Ergebnis) | G8: Kostenrechnerische
C9: Gewinn- und Verlustrechnung | E9: Unternehmensbezogene Abgrenzungen | G9: Korrekturen | I9: Betriebsergebnisrechung
E10: neutrale | F10: neutrale | G10: betriebliche | H10: verrechnete
B11: Konten | C11: Aufwendungen | D11: Erträge | E11: Aufwendungen | F11: Erträge | G11: Aufwendungen | H11: Kosten | I11: Kosten | J11: Leistungen
B12: Umsatzerlöse | D12: =GuV!E5 -> 10520000 | J12: =D12 -> 10520000
B13: Mehrbestände | D13: =IF(GuV!E6>0,GuV!E6,0) -> 240000 | J13: =D13 -> 240000
B14: Mieterträge | D14: =GuV!E7 -> 140000 | F14: =D14 -> 140000
B15: Erträge aus Vermögensabgängen | D15: =GuV!E8 -> 0 | F15: =D15 -> 0
B16: Zinserträge | D16: =GuV!E9 -> 115000 | F16: =D16 -> 115000
B17: Außerordentliche Erträge | D17: =GuV!E10 -> 0 | F17: =D17 -> 0
B18: Minderbestände | C18: =IF(GuV!C5>0,GuV!C5,0) -> 0 | I18: =C18 -> 0
B19: Aufwendungen für Rohstoffe (Fertigungsmaterial) | C19: =GuV!C6 -> 2800000 | G19: =IF(I19=C19,"",C19) -> 2800000 | H19: =IF(I19=C19,"",I19) -> 2940000 | I19: 2940000
B20: Aufwendungen für Hilfsstoffe | C20: =GuV!C7 -> 795000 | G20: =IF(I20=C20,"",C20) ->  | H20: =IF(I20=C20,"",I20) ->  | I20: 795000
B21: Aufwendungen für Betriebsstoffe | C21: =GuV!C8 -> 35000 | G21: =IF(I21=C21,"",C21) ->  | H21: =IF(I21=C21,"",I21) ->  | I21: 35000
B22: Fremdinstandhaltung | C22: =GuV!C9 -> 0 | E22: 0 | I22: =C22-E22 -> 0
B23: Löhne (Fertigungslöhne) | C23: =GuV!C10 -> 2400000 | I23: =C23 -> 2400000
B24: Gehälter | C24: =GuV!C11 -> 500000 | I24: =C24 -> 500000
B25: Soziale Abgaben | C25: =GuV!C12 -> 600000 | I25: =C25 -> 600000
B26: Abschreibungen auf Sachanlagen | C26: =GuV!C13 -> 650000 | E26: 60000 | G26: =IF(I26=C26,"",C26-E26) -> 590000 | H26: =IF(I26=C26,"",I26) -> 660000 | I26: 660000
B27: Mietaufwendungen | C27: =GuV!C14 -> 0 | I27: =C27 -> 0
B28: Büromaterial | C28: =GuV!C15 -> 50000 | I28: =C28 -> 50000
B29: Kosten für Werbung und Reise | C29: =GuV!C16 -> 205000 | I29: =C29 -> 205000
B30: Versicherungen | C30: =GuV!C17 -> 0 | I30: =C30 -> 0
B31: Verluste aus Vermögensabgängen | C31: =GuV!C18 -> 140000 | E31: =C31 -> 140000
B32: Betriebliche Steuern | C32: =GuV!C19 -> 190000 | E32: 10000 | I32: =C32-E32 -> 180000
B33: Zinsaufwand | C33: =GuV!C20 -> 540000 | G33: =IF(I33=C33,"",C33) -> 540000 | H33: =IF(I33=C33,"",I33) -> 1035000 | I33: 1035000
B34: Außerordentliche Aufwendungen | C34: =GuV!C21 -> 260000 | E34: =C34 -> 260000
B35: Kalkulatorischer Unternehmerlohn | H35: =I35 -> 300000 | I35: 300000
B36: Summen | C36: =SUM(C18:C35) -> 9165000 | D36: =SUM(D12:D17) -> 11015000 | E36: =SUM(E18:E35) -> 470000 | F36: =SUM(F12:F17) -> 255000 | G36: =SUM(G18:G35) -> 3930000 | H36: =SUM(H18:H35) -> 4935000 | I36: =SUM(I18:I35) -> 9700000 | J36: =SUM(J12:J17) -> 10760000
B37: Gewinn/Verlust | C37: =IF(D36>C36,C38-C36,0) -> 1850000 | D37: =IF(D36>C36,0,D38-D36) -> 0 | E37: =IF(F36>E36,E38-E36,"") ->  | F37: =IF(F36>E36,"",F38-F36) -> 215000 | G37: =IF(H36>G36,G38-G36,"") -> 1005000 | H37: =IF(H36>G36,"",H38-H36) ->  | I37: =IF(J36>I36,I38-I36,"") -> 1060000 | J37: =IF(J36>I36,"",J38-J36) -> 
C38: =IF(D36>C36,D36,C36) -> 11015000 | D38: =IF(D36>C36,D36,C36) -> 11015000 | E38: =IF(F36>E36,F36,E36) -> 470000 | F38: =IF(F36>E36,F36,E36) -> 470000 | G38: =IF(H36>G36,H36,G36) -> 4935000 | H38: =IF(H36>G36,H36,G36) -> 4935000 | I38: =IF(J36>I36,J36,I36) -> 10760000 | J38: =IF(J36>I36,J36,I36) -> 10760000

Sheet GuV
B2: Gewinn und Verlust (Aufwendungen und Ertäge der Finanzbuchhaltung)
B4: Aufwendungen | E4: Erträge
B5: Minderbestände | C5: 0 | D5: Umsatzerlöse | E5: 10520000
B6: Aufwendungen für Rohstoffe | C6: 2800000 | D6: Mehrbestände | E6: 240000
B7: Aufwendungen für Hilfsstoffe | C7: 795000 | D7: Mieterträge | E7: 140000
B8: Aufwendungen für Betriebsstoffe | C8: 35000 | D8: Erträge aus Vermögensabgängen | E8: 0
B9: Fremdinstandhaltung | C9: 0 | D9: Zinserträge | E9: 115000
B10: Löhne | C10: 2400000 | D10: Außerordentliche Erträge | E10: 0
B11: Gehälter | C11: 500000 | D11: Verlust | E11: =ErgTab!D37 -> 0
B12: Soziale Abgaben | C12: 600000
B13: Abschreibungen auf Sachanlagen | C13: 650000
B14: Mietaufwendungen | C14: 0
B15: Büromaterial | C15: 50000
B16: Kosten für Werbung und Reise | C16: 205000
B17: Versicherungen | C17: 0
B18: Verluste aus Vermögensabgängen | C18: 140000
B19: Betriebliche Steuern | C19: 190000
B20: Zinsaufwendungen | C20: 540000
B21: Außerordentliche Aufwendungen | C21: 260000
B22: Gewinn | C22: =ErgTab!C37 -> 1850000
C23: =ErgTab!C38 -> 11015000 | E23: =ErgTab!D38 -> 11015000

Sheet Grafik
